bitfinex/quotes_BTCUSD_20250518
["timestamp","ask_amount","ask_price","bid_price","bid_amount"]
[1747586093338,0.26837019,105360.0,105350.0,0.01181535]
[1747586093726,0.26837019,105360.0,105350.0,0.00907348]
[1747586095769,0.21616073,105360.0,105350.0,0.01856564]
[1747586096034,0.22565172,105360.0,105350.0,0.23617348]
[1747586096262,0.20666947,105360.0,105350.0,0.77550883]
[1747586096466,0.21616037,105360.0,105350.0,0.77550892]
[1747586096831,0.21616037,105360.0,105350.0,0.78500081]
[1747586097228,0.21616037,105360.0,105350.0,0.7850009]
[1747586097517,0.21616037,105360.0,105350.0,0.79449279]
[1747586097956,0.20666947,105360.0,105350.0,0.8369845]
[1747586098161,0.21616037,105360.0,105350.0,0.82749279]
[1747586098774,0.21616028,105360.0,105350.0,0.83698459]
[1747586099019,0.20666938,105360.0,105350.0,0.83698459]
[1747586099241,0.21616019,105360.0,105350.0,0.83698459]
[1747586099653,0.21616019,105360.0,105350.0,0.8180009]
[1747586100230,0.19717875,105360.0,105350.0,0.83698441]
[1747586100447,0.2013559,105360.0,105350.0,0.83698441]
[1747586100651,0.00204,105360.0,105350.0,0.94378552]
[1747586101449,0.00204,105360.0,105350.0,1.35578552]
[1747586103769,0.00204,105360.0,105350.0,1.37092026]
[1747586103979,0.00204,105360.0,105350.0,1.46021122]
[1747586104240,0.00204,105360.0,105350.0,1.37092026]
[1747586107759,0.00204,105360.0,105350.0,1.372874]
[1747586111829,0.00204,105360.0,105350.0,1.49746185]
[1747586112040,4e-05,105380.0,105370.0,0.28027734]
[1747586112257,4e-05,105380.0,105370.0,0.77054674]
[1747586112471,4e-05,105380.0,105370.0,0.77382269]
[1747586112681,4e-05,105380.0,105370.0,1.23841054]
[1747586113129,4e-05,105380.0,105370.0,1.2614001]
[1747586113356,0.00018192,105380.0,105370.0,1.2614001]
[1747586114265,0.002,105410.0,105400.0,0.55821522]
[1747586114454,0.01148613,105410.0,105400.0,0.74528819]
[1747586114719,0.01148613,105410.0,105400.0,0.75477531]
[1747586114720,0.20122144,105410.0,105400.0,0.75477531]
[1747586114939,0.20122144,105410.0,105400.0,0.75916242]
[1747586115156,0.20122144,105410.0,105400.0,0.76864945]
[1747586116129,0.20122144,105410.0,105400.0,0.77772293]
[1747586116703,0.20104232,105410.0,105400.0,0.77772293]
[1747586116918,0.00182088,105410.0,105400.0,0.93993233]
[1747586117526,0.00182088,105410.0,105400.0,0.87503233]
[1747586117748,0.23194223,105410.0,105400.0,0.84657088]
[1747586117956,0.27191528,105410.0,105400.0,1.07127269]
[1747586118161,0.28140159,105410.0,105400.0,0.35346059]
[1747586118374,0.27191618,105410.0,105400.0,0.35346059]
[1747586119669,0.27191618,105410.0,105400.0,0.35446059]
[1747586119867,0.26242978,105410.0,105400.0,0.35446059]
[1747586120334,0.26242978,105410.0,105400.0,0.01446059]
[1747586120958,0.26242978,105410.0,105400.0,0.00638711]
[1747586123217,0.25294311,105410.0,105400.0,0.00638711]
[1747586128239,0.28140213,105410.0,105400.0,0.01587477]
[1747586128712,0.29088889,105410.0,105400.0,0.02536234]
[1747586129065,0.29088889,105410.0,105400.0,0.09663871]
[1747586129679,0.29088889,105410.0,105400.0,0.10569707]
[1747586130643,0.28140213,105410.0,105400.0,0.29545039]
[1747586132253,0.271916,105410.0,105400.0,0.08672184]
[1747586132861,0.26242969,105410.0,105400.0,0.01544547]
[1747586133503,0.2701281,105400.0,105390.0,0.55042886]
[1747586133768,0.28910252,105400.0,105390.0,0.55042886]
[1747586133967,0.29858937,105400.0,105390.0,0.55991724]
[1747586134170,0.29858937,105400.0,105390.0,0.55042886]
[1747586134341,0.29858937,105400.0,105390.0,0.55991724]
[1747586135270,0.29858937,105400.0,105390.0,0.54094039]
[1747586135472,0.28910252,105400.0,105390.0,0.55991742]
[1747586135672,0.28910243,105400.0,105390.0,0.5694058]
[1747586135829,0.28910243,105400.0,105390.0,0.55042895]
[1747586136040,0.28910243,105400.0,105390.0,0.56591742]
[1747586137281,0.2796154,105400.0,105390.0,0.54694039]
[1747586137490,0.2796154,105400.0,105390.0,0.74620027]
[1747586137685,0.2796154,105400.0,105390.0,0.75568865]
[1747586138568,0.2796154,105400.0,105390.0,0.75568874]
[1747586138971,0.2796154,105400.0,105390.0,0.76517712]
[1747586141275,0.2796154,105400.0,105390.0,0.77466541]
[1747586141442,0.2796154,105400.0,105390.0,0.76517712]
[1747586142078,0.27012783,105400.0,105390.0,0.77650006]
[1747586142250,0.27012783,105400.0,105390.0,0.78598835]
[1747586142457,0.27012783,105400.0,105390.0,0.77474006]
[1747586142690,0.27012783,105400.0,105390.0,0.78422835]
[1747586142895,0.2796154,105400.0,105390.0,0.77474006]
[1747586145523,0.27012783,105400.0,105390.0,0.78422826]
[1747586145728,0.27012783,105400.0,105390.0,0.78422835]
[1747586146146,0.2796154,105400.0,105390.0,0.78422835]
[1747586146337,0.27961531,105400.0,105390.0,0.78422835]
[1747586146540,0.27961531,105400.0,105390.0,0.77474006]
[1747586146745,0.28910297,105400.0,105390.0,0.78383175]
[1747586146987,0.27961531,105400.0,105390.0,0.78383175]
[1747586147406,0.27961531,105400.0,105390.0,0.56559502]
[1747586147642,0.58385004,105400.0,105390.0,0.02641463]
[1747586147857,0.36743777,105400.0,105390.0,0.02641463]
[1747586148643,0.36743777,105400.0,105390.0,0.01509169]
[1747586151642,0.36743777,105400.0,105390.0,0.006]
[1747586154751,0.66218493,105400.0,105390.0,0.006]
[1747586155067,0.66218493,105400.0,105390.0,0.003]
[1747586155306,0.77403518,105400.0,105390.0,0.004]
[1747586155507,0.67672578,105400.0,105390.0,0.004]
[1747586156067,0.20876762,105380.0,105370.0,0.01132294]
[1747586156236,0.26986762,105380.0,105370.0,0.01132294]
[1747586156436,0.36717702,105380.0,105370.0,0.01132294]
[1747586157335,0.36717702,105380.0,105370.0,0.06851397]
[1747586157508,0.36717702,105380.0,105370.0,0.05719103]
[1747586158320,0.36717702,105380.0,105370.0,0.06019103]
[1747586159447,0.36717702,105380.0,105370.0,0.06319103]
[1747586159448,0.66192418,105380.0,105370.0,0.06319103]
[1747586159662,0.36717702,105380.0,105370.0,0.06319103]
[1747586160969,0.66192418,105380.0,105370.0,0.06319103]
[1747586161185,0.66192418,105380.0,105370.0,0.006]
[1747586161396,0.67138996,105380.0,105370.0,0.006]
[1747586161823,0.67138996,105380.0,105370.0,0.003]
[1747586162030,0.66192418,105380.0,105370.0,0.003]
[1747586162296,0.66192418,105380.0,105370.0,0.004]
[1747586162517,0.26986762,105380.0,105370.0,0.004]
[1747586162734,0.20876762,105380.0,105370.0,0.004]
[1747586162966,0.26946762,105380.0,105370.0,0.001]
[1747586163417,0.26946762,105380.0,105370.0,0.002]
[1747586169079,0.21825708,105380.0,105370.0,0.01149036]
[1747586169295,0.21825627,105380.0,105370.0,0.27973529]
[1747586169510,0.22774564,105380.0,105370.0,0.12991822]
[1747586169727,0.22774564,105380.0,105370.0,0.12991831]
[1747586169995,0.2372351,105380.0,105370.0,0.12991831]
[1747586170214,0.2372351,105380.0,105370.0,0.12042795]
[1747586170435,0.21825735,105380.0,105370.0,0.12042795]
[1747586170669,0.18978933,105380.0,105370.0,0.002]
[1747586170879,0.22774555,105380.0,105370.0,0.002]
[1747586171085,0.22774555,105380.0,105370.0,0.02055887]
[1747586171317,0.22774555,105380.0,105370.0,0.01106851]
[1747586171527,0.22774555,105380.0,105370.0,0.07500415]
[1747586172595,0.22774555,105380.0,105370.0,0.08449451]
[1747586172799,0.22774555,105380.0,105370.0,0.07500415]
[1747586174606,0.22774555,105380.0,105370.0,0.08449451]
[1747586174988,0.2182569,105380.0,105370.0,0.07500415]
[1747586176364,0.20876798,105380.0,105370.0,0.07500415]
[1747586180986,0.19927825,105380.0,105370.0,0.34799158]
[1747586181189,0.2087669,105380.0,105370.0,0.34799158]
[1747586181416,0.21825197,105390.0,105370.0,0.5528014]
[1747586181639,0.21825125,105390.0,105380.0,0.00948946]
[1747586181834,0.00948874,105380.0,105370.0,0.6501108]
[1747586182047,0.00948874,105380.0,105370.0,0.9901108]
[1747586182596,0.00948874,105380.0,105370.0,0.9881108]
[1747586182747,0.01897739,105380.0,105370.0,1.00043374]
[1747586183559,0.00948784,105390.0,105380.0,0.58885663]
[1747586183769,0.20874718,105390.0,105380.0,0.63622312]
[1747586183990,0.21823538,105390.0,105380.0,0.64571213]
[1747586184219,0.21823538,105390.0,105380.0,0.65478064]
[1747586184433,0.22772385,105390.0,105380.0,0.64529172]
[1747586184586,0.23721214,105390.0,105380.0,0.64529181]
[1747586184792,0.22772367,105390.0,105380.0,0.64529181]
[1747586184952,0.23721214,105390.0,105380.0,0.64529181]
[1747586186217,0.22772367,105390.0,105380.0,0.64529181]
[1747586186423,0.23721205,105390.0,105380.0,0.65661475]
[1747586186859,0.23721205,105390.0,105380.0,0.66610394]
[1747586187265,0.23721205,105390.0,105380.0,0.66710394]
[1747586187645,0.23721205,105390.0,105380.0,0.65761475]
[1747586187830,0.23721205,105390.0,105380.0,0.65861475]
[1747586188028,0.23725205,105390.0,105380.0,0.65861475]
[1747586189084,0.22776367,105390.0,105380.0,0.66810394]
[1747586189334,0.20878718,105390.0,105380.0,0.67759304]
[1747586189463,0.21827538,105390.0,105380.0,0.68708205]
[1747586190480,0.22776367,105390.0,105380.0,0.65861475]
[1747586190736,0.23725214,105390.0,105380.0,0.66810394]
[1747586190987,0.2277643,105390.0,105380.0,0.38774677]
[1747586191190,0.2277643,105390.0,105380.0,0.39723623]
[1747586191390,0.2277643,105390.0,105380.0,0.4067256]
[1747586191500,0.21827583,105390.0,105380.0,0.60600412]
[1747586191710,0.2277643,105390.0,105380.0,0.60600421]
[1747586192340,0.29266484,105390.0,105380.0,0.38774677]
[1747586192542,0.29266484,105390.0,105380.0,0.39723623]
[1747586192744,0.29266484,105390.0,105380.0,0.4067256]
[1747586193605,0.26056484,105390.0,105380.0,0.4067256]
[1747586193816,0.26056484,105390.0,105380.0,0.39723623]
[1747586194038,0.26056484,105390.0,105380.0,0.4067256]
[1747586194446,0.24158835,105390.0,105380.0,0.36239145]
[1747586194662,0.27368835,105390.0,105380.0,0.36239145]
[1747586196610,0.26419988,105390.0,105380.0,0.36239145]
[1747586196946,0.26419988,105390.0,105380.0,0.35106851]
[1747586198117,0.26419988,105390.0,105380.0,0.01106851]
[1747586198313,0.59713111,105390.0,105380.0,0.01106851]
[1747586200293,0.36150928,105390.0,105380.0,0.01106851]
[1747586201129,0.59713111,105390.0,105380.0,0.01106851]
[1747586202528,0.36150928,105390.0,105380.0,0.01106851]
[1747586202945,0.21827698,105370.0,105360.0,0.57642726]
[1747586203150,0.21827698,105370.0,105360.0,0.57656918]
[1747586203319,0.22776707,105370.0,105360.0,0.5670781]
[1747586203853,0.22776707,105370.0,105360.0,0.57656918]
[1747586204265,0.22776707,105370.0,105360.0,0.58056918]
[1747586204466,0.22776707,105370.0,105360.0,0.5710781]
[1747586204643,0.2182768,105370.0,105360.0,0.58056918]
[1747586204844,0.21827662,105370.0,105360.0,0.65166008]
[1747586205042,0.21827662,105370.0,105360.0,0.67064161]
[1747586205243,0.21827662,105370.0,105360.0,0.62403937]
[1747586205618,0.21827662,105370.0,105360.0,0.62803937]
[1747586205831,0.21827662,105370.0,105360.0,0.63753018]
[1747586206051,0.22776671,105370.0,105360.0,0.63753018]
[1747586206487,0.22776671,105370.0,105360.0,0.62803937]
[1747586207049,0.20878671,105370.0,105360.0,0.62803937]
[1747586207298,0.00948955,105370.0,105360.0,0.63753009]
[1747586207514,0.19929952,105390.0,105380.0,0.19927861]
[1747586207718,0.20878727,105390.0,105380.0,0.61036771]
[1747586207959,0.2372525,105390.0,105380.0,0.6008787]
[1747586208168,0.22776394,105390.0,105380.0,0.61985717]
[1747586208375,0.22776457,105390.0,105380.0,0.41108937]
[1747586208590,0.22776457,105390.0,105380.0,0.61036798]
[1747586209060,0.22776457,105390.0,105380.0,0.61136798]
[1747586209282,0.22776457,105390.0,105380.0,0.54976798]
[1747586209668,0.22776457,105390.0,105380.0,0.55076798]
[1747586209898,0.22776457,105390.0,105380.0,0.56025708]
[1747586210496,0.22776457,105390.0,105380.0,0.55957717]
[1747586210691,0.23725313,105390.0,105380.0,0.55957717]
[1747586210863,0.22776502,105390.0,105380.0,0.54059861]
[1747586211056,0.21827673,105390.0,105380.0,0.35080946]
[1747586211298,0.27438835,105390.0,105380.0,0.34132]
[1747586211511,0.27438835,105390.0,105380.0,0.42624518]
[1747586211761,0.27438835,105390.0,105380.0,0.43573455]
[1747586211957,0.27438835,105390.0,105380.0,0.44522383]
[1747586212165,0.24128835,105390.0,105380.0,0.63501316]
[1747586212615,0.24128835,105390.0,105380.0,0.62552388]
[1747586213209,0.24128835,105390.0,105380.0,0.63501316]
[1747586214007,0.24128835,105390.0,105380.0,0.62552388]
[1747586214573,0.24128835,105390.0,105380.0,0.63501316]
[1747586215637,0.20878835,105390.0,105380.0,0.64450235]
[1747586217902,0.20878745,105390.0,105380.0,0.65399136]
[1747586218108,0.20878745,105390.0,105380.0,0.63501289]
[1747586218327,0.21827583,105390.0,105380.0,0.64450181]
[1747586218707,0.21827583,105390.0,105380.0,0.6445019]
[1747586218928,0.00952793,105390.0,105380.0,0.6445019]
[1747586219187,0.01901604,105390.0,105380.0,0.65399073]
[1747586219396,0.00952793,105390.0,105380.0,0.68689073]
[1747586220048,0.21827565,105390.0,105380.0,0.68689073]
[1747586220255,0.20878736,105390.0,105380.0,0.68689073]
[1747586220466,0.20878736,105390.0,105380.0,0.71949073]
[1747586220684,4e-05,105390.0,105380.0,0.71949073]
[1747586220898,0.00952793,105390.0,105380.0,0.71949073]
[1747586221094,0.00952784,105390.0,105380.0,0.71949073]
[1747586221776,4e-05,105390.0,105380.0,0.81680013]
[1747586222193,4e-05,105390.0,105380.0,1.01136013]
[1747586227246,4e-05,105390.0,105380.0,1.42336013]
[1747586227657,4e-05,105390.0,105380.0,1.43790098]
[1747586228200,4e-05,105390.0,105380.0,1.54794798]
[1747586228608,4e-05,105390.0,105380.0,1.54694798]
[1747586228841,4e-05,105390.0,105380.0,1.57506784]
[1747586229045,0.0017078,105410.0,105400.0,0.27951522]
[1747586229247,0.0017078,105410.0,105400.0,0.77979986]
[1747586229450,0.01119375,105410.0,105400.0,0.77979986]
[1747586229933,0.0017078,105410.0,105400.0,0.77979986]
[1747586230150,0.0017078,105410.0,105400.0,0.78887488]
[1747586230371,0.00179756,105410.0,105400.0,0.79087488]
[1747586231000,0.01128351,105410.0,105400.0,0.79087488]
[1747586231550,0.00179756,105410.0,105400.0,0.79087488]
[1747586231747,0.00179756,105410.0,105400.0,0.79287488]
[1747586232380,0.00179756,105410.0,105400.0,0.80703477]
[1747586233390,0.00179756,105410.0,105400.0,0.81654487]
[1747586236078,0.00179756,105410.0,105400.0,0.78644487]
[1747586237628,0.00179756,105410.0,105400.0,0.75524487]
[1747586238419,0.00183756,105410.0,105400.0,0.75524487]
[1747586239741,0.00183756,105410.0,105400.0,0.81614487]
[1747586242036,0.00183756,105410.0,105400.0,0.75524487]
[1747586242225,0.00183756,105410.0,105400.0,0.56024487]
[1747586242602,0.00183756,105410.0,105400.0,0.75436487]
[1747586243652,0.00183756,105410.0,105400.0,0.56024487]
[1747586243853,0.27234522,105410.0,105400.0,0.89075793]
[1747586244373,0.27234522,105410.0,105400.0,0.70612523]
[1747586244374,0.29131838,105410.0,105400.0,0.70612523]
[1747586244899,0.28183171,105410.0,105400.0,0.71561235]
[1747586245139,0.27234522,105410.0,105400.0,0.71561235]
[1747586245352,0.28183171,105410.0,105400.0,0.71561244]
[1747586245574,0.28183171,105410.0,105400.0,0.72509956]
[1747586245838,0.27234522,105410.0,105400.0,0.70612523]
[1747586246024,0.28183171,105410.0,105400.0,0.61830295]
[1747586246230,0.28183171,105410.0,105400.0,0.62779016]
[1747586246428,0.28183162,105410.0,105400.0,0.62779016]
[1747586246637,0.27234522,105410.0,105400.0,0.62778962]
[1747586248336,0.27234594,105410.0,105400.0,0.05060025]
[1747586249130,0.27234594,105410.0,105400.0,0.06008782]
[1747586249342,0.27234594,105410.0,105400.0,0.05060025]
[1747586249595,0.27234594,105410.0,105400.0,0.06008791]
[1747586250153,0.27234594,105410.0,105400.0,0.05060025]
[1747586250342,0.27234594,105410.0,105400.0,0.06008791]
[1747586250571,0.27234594,105410.0,105400.0,0.06957539]
[1747586250781,0.27234594,105410.0,105400.0,0.06008791]
[1747586251811,0.27234594,105410.0,105400.0,0.25932871]
[1747586252036,0.27234594,105410.0,105400.0,0.2688161]
[1747586252291,0.2818327,105410.0,105400.0,0.25932871]
[1747586252513,0.2818327,105410.0,105400.0,0.2688161]
[1747586252957,0.2818327,105410.0,105400.0,0.25932871]
[1747586255925,0.27234594,105410.0,105400.0,0.26881601]
[1747586256127,0.2818327,105410.0,105400.0,0.2688161]
[1747586256298,0.2818327,105410.0,105400.0,0.25932871]
[1747586257180,0.27234621,105410.0,105400.0,0.05060025]
[1747586257969,0.27234621,105410.0,105400.0,0.04109015]
[1747586258352,0.27234621,105410.0,105400.0,0.05057781]
[1747586258552,0.26285918,105410.0,105400.0,0.2498187]
[1747586258756,0.2818318,105410.0,105400.0,0.26879348]
[1747586258961,0.02080991,105410.0,105400.0,0.27828051]
[1747586259170,0.05360991,105410.0,105400.0,0.27828051]
[1747586259379,0.08360991,105410.0,105400.0,0.27828051]
[1747586259580,0.08360991,105410.0,105400.0,0.26879348]
[1747586259789,0.28283171,105410.0,105400.0,0.26879348]
[1747586259991,0.29231838,105410.0,105400.0,0.26879348]
[1747586260225,0.28283171,105410.0,105400.0,0.26879348]
[1747586260583,0.28283162,105410.0,105400.0,0.25930618]
[1747586260789,0.28283162,105410.0,105400.0,0.2782806]
[1747586261429,0.28283162,105410.0,105400.0,0.25930618]
[1747586261633,0.30180487,105410.0,105400.0,0.26879357]
[1747586261885,0.29231811,105410.0,105400.0,0.27828087]
[1747586262091,0.30180487,105410.0,105400.0,0.26879357]
[1747586262880,0.30180487,105410.0,105400.0,0.25930618]
[1747586263250,0.27334612,105410.0,105400.0,0.04109015]
[1747586263485,0.27334612,105410.0,105400.0,0.02693026]
[1747586263703,0.27334612,105410.0,105400.0,0.01307502]
[1747586267245,0.52519648,105410.0,105400.0,0.01307502]
[1747586268541,0.52519648,105410.0,105400.0,0.004]
[1747586269844,0.60625367,105410.0,105400.0,0.004]
[1747586270054,0.79989367,105410.0,105400.0,0.004]
[1747586273165,0.81443452,105410.0,105400.0,0.004]
[1747586273384,1.16443452,105410.0,105400.0,0.004]
[1747586273838,1.16439452,105410.0,105400.0,0.004]
[1747586274057,0.27006762,105380.0,105370.0,0.02647383]
[1747586274715,0.27006762,105380.0,105370.0,0.02943807]
[1747586275343,0.27006762,105380.0,105370.0,0.03143807]
[1747586275569,0.27006762,105380.0,105370.0,0.05921779]
[1747586275979,0.27006762,105380.0,105370.0,0.06121779]
[1747586276473,0.27006762,105380.0,105370.0,0.05518252]
[1747586276679,0.27006762,105380.0,105370.0,0.04382357]
[1747586277121,0.27006762,105380.0,105370.0,0.05331393]
[1747586277725,0.27006762,105380.0,105370.0,0.04382357]
[1747586278350,0.27006762,105380.0,105370.0,0.05331393]
[1747586278558,0.26057861,105380.0,105370.0,0.05331393]
[1747586280016,0.25108933,105380.0,105370.0,0.03474396]
[1747586280448,0.24864933,105380.0,105370.0,0.03474396]
[1747586280885,0.24864933,105380.0,105370.0,0.24353193]
[1747586281766,0.01897775,105380.0,105370.0,0.26251184]
[1747586281976,0.02846685,105380.0,105370.0,0.33620157]
[1747586282208,0.23723483,105380.0,105370.0,0.26251184]
[1747586282421,0.23723483,105380.0,105370.0,0.26903742]
[1747586282422,0.23723555,105380.0,105370.0,0.26903742]
[1747586282652,0.02846739,105380.0,105370.0,0.26903679]
[1747586283133,0.22774618,105380.0,105370.0,0.25954706]
[1747586283354,0.22774618,105380.0,105370.0,0.25005724]
[1747586283582,0.22774618,105380.0,105370.0,0.25912316]
[1747586284045,0.28245726,105380.0,105370.0,0.04084564]
[1747586284267,0.27296807,105380.0,105370.0,0.04084564]
[1747586284716,0.27296807,105380.0,105370.0,0.03474394]
[1747586289365,0.27296807,105380.0,105370.0,0.03010148]
[1747586289584,0.27296807,105380.0,105370.0,0.03959175]
[1747586289815,0.27296807,105380.0,105370.0,0.23888927]
[1747586290009,0.27296807,105380.0,105370.0,0.03010148]
[1747586290243,0.27296807,105380.0,105370.0,0.03959184]
[1747586290668,0.27296807,105380.0,105370.0,0.03010148]
[1747586292648,0.27296807,105380.0,105370.0,0.04908211]
[1747586292854,0.27296807,105380.0,105370.0,0.23888945]
[1747586293074,0.27296807,105380.0,105370.0,0.25745519]
[1747586293282,0.27296807,105380.0,105370.0,0.2479651]
[1747586293497,0.20876807,105380.0,105370.0,0.2479651]
[1747586293731,0.00948901,105380.0,105370.0,0.32005429]
[1747586293953,0.22774573,105380.0,105370.0,0.31056483]
[1747586294172,0.22774573,105380.0,105370.0,0.24796483]
[1747586294389,0.21825699,105380.0,105370.0,0.24796483]
[1747586294598,0.27306798,105380.0,105370.0,0.03917713]
[1747586295047,0.27306798,105380.0,105370.0,0.04866749]
[1747586295943,0.27306798,105380.0,105370.0,0.03917713]
[1747586296619,0.26357879,105380.0,105370.0,0.03621291]
[1747586297289,0.26357879,105380.0,105370.0,0.01107565]
[1747586298005,0.59648634,105380.0,105370.0,0.01107565]
[1747586298229,0.78972634,105380.0,105370.0,0.01107565]
[1747586298863,0.78972634,105380.0,105370.0,0.01404003]
[1747586302284,0.78972634,105380.0,105370.0,0.00496438]
[1747586304052,0.55412819,105380.0,105370.0,0.00496438]
[1747586304557,0.36088819,105380.0,105370.0,0.00496438]
[1747586305686,0.22778528,105380.0,105370.0,0.30622773]
[1747586305894,0.03799586,105380.0,105370.0,0.36740759]
[1747586306096,0.03799586,105380.0,105370.0,0.55107786]
[1747586306299,0.22778519,105380.0,105370.0,0.54158813]
[1747586306512,0.22778519,105380.0,105370.0,0.53862375]
[1747586307382,0.22778519,105380.0,105370.0,0.54811366]
[1747586308053,0.22778519,105380.0,105370.0,0.53862375]
[1747586308244,0.22778519,105380.0,105370.0,0.54811366]
[1747586308505,0.21829654,105380.0,105370.0,0.46473375]
[1747586308719,0.21829654,105380.0,105370.0,0.4760927]
[1747586308937,0.21829654,105380.0,105370.0,0.42440257]
[1747586309395,0.19931861,105380.0,105370.0,0.21561469]
[1747586309623,0.19931861,105380.0,105370.0,0.02245469]
[1747586309839,0.26081861,105380.0,105370.0,0.02541886]
[1747586310279,0.49641676,105380.0,105370.0,0.03042136]
[1747586310724,0.35812801,105380.0,105370.0,0.02541886]
[1747586311630,0.35812801,105380.0,105370.0,0.01405991]
[1747586312017,0.80126701,105380.0,105370.0,0.01405991]
[1747586312888,0.80126701,105380.0,105370.0,0.00496417]
[1747586314662,0.56566886,105380.0,105370.0,0.00496417]
[1747586314925,0.80126701,105380.0,105370.0,0.00496417]
[1747586316655,0.56566886,105380.0,105370.0,0.00496417]
[1747586316900,0.0973494,105380.0,105370.0,0.20426178]
[1747586317148,0.0973494,105380.0,105370.0,0.51513761]
[1747586317149,4e-05,105380.0,105370.0,0.51513761]
[1747586317386,4e-05,105380.0,105370.0,0.85513761]
[1747586317626,0.03510492,105410.0,105400.0,0.62221522]
[1747586317869,0.03510492,105410.0,105400.0,0.55821522]
[1747586318106,0.02846757,105380.0,105370.0,0.25601362]
[1747586318333,0.02846694,105380.0,105370.0,0.30226438]
[1747586318568,0.02846694,105380.0,105370.0,0.26906447]
[1747586318807,0.02846703,105380.0,105370.0,0.0597161]
[1747586319039,0.21825681,105380.0,105370.0,0.04899269]
[1747586319264,0.20874745,105390.0,105370.0,0.27033586]
[1747586319512,0.01897775,105380.0,105370.0,0.26484667]
[1747586319746,0.01897748,105380.0,105370.0,0.27433703]
[1747586319975,0.21825726,105380.0,105370.0,0.05205933]
[1747586320203,0.20876816,105380.0,105370.0,0.05105933]
[1747586320643,0.19927843,105380.0,105370.0,0.25984712]
[1747586320869,0.00948883,105380.0,105370.0,0.27544401]
[1747586321092,0.02094528,105380.0,105370.0,0.62493374]
[1747586321320,0.00948883,105380.0,105370.0,0.62196946]
[1747586321541,0.18976728,105400.0,105390.0,0.00948847]
[1747586321767,0.00948685,105400.0,105390.0,0.55823529]
[1747586321990,0.01132423,105410.0,105400.0,0.56770243]
[1747586321991,0.0302964,105410.0,105400.0,0.56770243]
[1747586322216,0.22951865,105410.0,105400.0,0.54872819]
[1747586322670,0.22003243,105410.0,105400.0,0.35857936]
[1747586322897,0.20105963,105410.0,105400.0,0.34909179]
[1747586323115,0.43665778,105410.0,105400.0,0.00909179]
[1747586323352,0.20105963,105410.0,105400.0,0.00909179]
[1747586323578,0.20505963,105410.0,105400.0,0.00909179]
[1747586323818,0.20105963,105410.0,105400.0,0.00909179]
[1747586324041,0.20305963,105410.0,105400.0,0.00909179]
[1747586324915,0.20605963,105410.0,105400.0,0.00909179]
[1747586325978,0.50485778,105410.0,105400.0,0.00909179]
[1747586326194,0.26925963,105410.0,105400.0,0.00909179]
[1747586326388,0.50485778,105410.0,105400.0,0.00909179]
[1747586326658,0.60216718,105410.0,105400.0,0.00909179]
[1747586327658,0.1992408,105400.0,105390.0,0.06100419]
[1747586328842,0.2002408,105400.0,105390.0,0.06100419]
[1747586328976,0.2012408,105400.0,105390.0,0.06100419]
[1747586333044,0.19175332,105400.0,105390.0,0.06100419]
[1747586333645,0.19372067,105400.0,105390.0,0.06100419]
[1747586333853,0.19175332,105400.0,105390.0,0.06100419]
[1747586334748,0.19372067,105400.0,105390.0,0.06100419]
[1747586336466,0.19175332,105400.0,105390.0,0.06100419]
[1747586336682,0.19372067,105400.0,105390.0,0.06100419]
[1747586339756,0.25275332,105400.0,105390.0,0.06100419]
[1747586341236,0.22195332,105400.0,105390.0,0.06100419]
[1747586343844,0.22195332,105400.0,105390.0,0.07007316]
[1747586344071,0.25515332,105400.0,105390.0,0.07007316]
[1747586346152,0.22195332,105400.0,105390.0,0.07007316]
[1747586346764,0.19175332,105400.0,105390.0,0.07007316]
[1747586348231,0.2012408,105400.0,105390.0,0.07007316]
[1747586348430,0.2012408,105400.0,105390.0,0.06831316]
[1747586348633,0.21072747,105400.0,105390.0,0.33117295]
[1747586348833,0.22970234,105400.0,105390.0,0.13191316]
[1747586349081,0.01148694,105400.0,105390.0,0.33117304]
[1747586349282,0.002,105400.0,105390.0,0.69963764]
[1747586349483,0.01148694,105400.0,105390.0,0.69963764]
[1747586349660,0.21072738,105400.0,105390.0,0.69963764]
[1747586350020,0.21072738,105400.0,105390.0,0.70912566]
[1747586350229,0.22021477,105400.0,105390.0,0.68066151]
[1747586350433,0.01148694,105400.0,105390.0,0.69963773]
[1747586350634,0.01148694,105400.0,105390.0,0.70912566]
[1747586350836,0.02097406,105400.0,105390.0,0.55912566]
[1747586351036,0.22021468,105400.0,105390.0,0.54963782]
[1747586351248,0.22021468,105400.0,105390.0,0.53066151]
[1747586351473,0.22021468,105400.0,105390.0,0.76060638]
[1747586351687,0.22021468,105400.0,105390.0,0.77196533]
[1747586351922,0.22970225,105400.0,105390.0,0.56232751]
[1747586352159,0.28381531,105400.0,105390.0,0.01135895]
[1747586352380,0.50992634,105400.0,105390.0,0.01135895]
[1747586352596,0.27432819,105400.0,105390.0,0.01135895]
[1747586352819,0.60723574,105400.0,105390.0,0.01135895]
[1747586353280,0.62177659,105400.0,105390.0,0.01135895]
[1747586354821,0.62077659,105400.0,105390.0,0.01135895]
[1747586355287,0.62377659,105400.0,105390.0,0.01135895]
[1747586355500,0.27086762,105380.0,105370.0,0.00710725]
[1747586355725,0.36817702,105380.0,105370.0,0.00710725]
[1747586356312,0.36817702,105380.0,105370.0,0.01007158]
[1747586356516,0.22778869,105360.0,105350.0,0.21283895]
[1747586356893,0.22778869,105360.0,105350.0,0.22233102]
[1747586357129,0.22778869,105360.0,105350.0,0.231823]
[1747586357538,0.20880779,105360.0,105350.0,0.21283895]
[1747586357793,0.20885504,105360.0,105350.0,0.21683895]
[1747586358243,0.49706202,105360.0,105350.0,0.01535895]
[1747586358977,0.49706202,105360.0,105350.0,0.004]
[1747586359204,0.49706202,105360.0,105350.0,0.008]
[1747586359205,0.35877327,105360.0,105350.0,0.008]
[1747586359452,0.59437142,105360.0,105350.0,0.004]
[1747586359676,0.20882724,105350.0,105340.0,0.20152]
[1747586360576,0.20882724,105350.0,105340.0,0.21101288]
[1747586360830,0.19087261,105360.0,105350.0,0.19933526]
[1747586361065,0.00104725,105360.0,105350.0,0.22781075]
[1747586361287,4.725e-05,105360.0,105350.0,0.25861075]
[1747586361515,0.01902833,105360.0,105350.0,0.29161075]
[1747586361742,4.725e-05,105360.0,105350.0,0.31725506]
[1747586361974,4.725e-05,105360.0,105350.0,0.63161075]
[1747586362195,4.725e-05,105360.0,105350.0,0.72892015]
[1747586362660,8.725e-05,105360.0,105350.0,0.93216015]
[1747586363081,0.00108725,105360.0,105350.0,0.93216015]
[1747586363507,0.00108725,105360.0,105350.0,0.95780446]
[1747586363735,0.00108725,105360.0,105350.0,0.93216015]
[1747586364204,0.00108725,105360.0,105350.0,0.94122659]
[1747586364426,0.00108725,105360.0,105350.0,1.06581444]
[1747586365335,0.00108725,105360.0,105350.0,1.47781444]
[1747586365773,8.725e-05,105360.0,105350.0,1.47781444]
[1747586365961,8.725e-05,105360.0,105350.0,1.47881444]
[1747586366154,8.725e-05,105360.0,105350.0,1.50827944]
[1747586366458,8.725e-05,105360.0,105350.0,1.50627944]
[1747586366703,8.725e-05,105360.0,105350.0,1.53536614]
[1747586366915,8.725e-05,105360.0,105350.0,1.53836614]